Cogmind - Beta 9.6 @@@ ROGUE MODE // 2020.08.09 @ 19:19:12 Player: Plexion Result: Self-destructed Performance ------------- Evolutions (1) 500 Regions Visited (2) 400 Robots Destroyed (13) 65 Value Destroyed (322) 322 Prototype IDs (0) 0 Alien Tech Used (0) 0 Bonus (0) 0 TOTAL SCORE: 1287 Bonus ------- None Cogmind --------- Core Integrity 379/400 Matter 298/300 Energy 100/100 System Corruption 0% Temperature Cool (0) Movement Walking (120) Location -9/Materials Parts ------- > --- POWER (1) -------- (None) > --- PROPULSION (2) --- Aluminum Leg Aluminum Leg > --- UTILITY (4) ------ Improved Heat Sink Medium Storage Unit > --- WEAPON (2) ------- Assault Rifle > --- INVENTORY (8) ---- Ion Engine Light Ion Engine Aluminum Leg Aluminum Leg Small Storage Unit Small Laser Assault Rifle Assault Rifle Peak State ------------ > --- POWER ------------ Light Nuclear Core > --- PROPULSION ------- Aluminum Leg Aluminum Leg > --- UTILITY ---------- Improved Heat Sink Medium Storage Unit > --- WEAPON ----------- Assault Rifle Assault Rifle > --- INVENTORY -------- Ion Engine Light Ion Engine Aluminum Leg Small Storage Unit Small Laser Assault Rifle Assault Rifle [Rating: 11] Favorites ----------- Power Ion Engine Engine Ion Engine Power Core Light Nuclear Core Propulsion Aluminum Leg Leg Aluminum Leg Wheel Wheel Utility Improved Heat Sink Device Improved Heat Sink Storage Small Storage Unit Weapon Assault Rifle Energy Gun Small Laser Ballistic Gun Assault Rifle Build | -11 -10 -9 ------- Run | Scr Mat Mat Slots Evolved 2 | . . 2 Power . | . . . Propulsion . | . . . Utility 2 | . . 2 Weapon . | . . . Parts Attached 12 | 8 3 1 Power 2 | 1 1 . Engine 1 | 1 . . Core 1 | . 1 . Reactor . | . . . Propulsion 4 | 3 . 1 Treads . | . . . Leg 3 | 2 . 1 Wheel 1 | 1 . . Hover . | . . . Flight . | . . . Utility 3 | 1 2 . Device 1 | . 1 . Storage 2 | 1 1 . Processor . | . . . Hackware . | . . . Protection . | . . . Artifact . | . . . Weapon 3 | 3 . . Energy Gun 1 | 1 . . Energy Cannon . | . . . Ballistic Gun 2 | 2 . . Ballistic Cannon . | . . . Launcher . | . . . Special Weapon . | . . . Impact Weapon . | . . . Slashing Weapon . | . . . Piercing Weapon . | . . . Special Melee Weapon . | . . . Unidentified Prototypes . | . . . Parts Lost 2 | . . 2 Power 1 | . . 1 Propulsion . | . . . Utility . | . . . Weapon 1 | . . 1 Highest Loss Streak 2 | . . 2 Average Slot Usage (%) 92 | . 95 75 Engine 10 | . 13 . Core 2 | . . 9 Leg 26 | . 28 22 Device 10 | . 9 11 Storage 13 | . 14 11 Ballistic Gun 26 | . 28 22 Naked Turns . | . . . Heaviest Build 18 | 13 18 18 Greatest Support 20 | 20 20 20 Greatest Overweight (x) 1 | 1 . . Average Overweight (x) . | . . . Largest Inventory Capacity 8 | 6 8 8 Average Capacity 6 | 5 6 8 Most Carried 8 | 2 8 8 Average Carried 4 | 1 4 8 Final Capacity 8 | 6 8 8 Final Carried 8 | 2 8 8 Class Distribution -------------------- 100% | Mutant Dominant Class ---------------- Mutant | -10/Materials Mutant | -9/Materials Resources | -11 -10 -9 ----------- Run | Scr Mat Mat Matter Collected 519 | 176 264 79 Remotely . | . . . Salvage Created 389 | . 300 89 Parts 26 | . 20 6 Haulers Intercepted . | . . . Recyclers Shooed 1 | . 1 . Parts Field Recycled . | . . . Retrieved Matter . | . . . Parts Self-Destructed . | . . . Prevented . | . . . Kills | -11 -10 -9 ------- Run | Scr Mat Mat Combat Hostiles Destroyed 10 | . 8 2 Guns 10 | . 8 2 Classes Destroyed 4 | . 4 . Worker 2 | . 1 1 Watcher 1 | . 1 . Swarmer 3 | . 3 . Grunt 7 | . 5 2 Best Kill Streak 3 | . 3 3 Combat Bots Only 3 | . 3 2 Max Kills in Single Turn 1 | . 1 1 Gunslinging . | . . . Exploded . | . . . Melee . | . . . Uniques/NPCs Destroyed . | . . . Combat | -11 -10 -9 -------- Run | Scr Mat Mat Damage Taken 370 | . 262 108 Core 38 | . 17 21 Absorbed by Shields . | . . . Core Remaining (%) 96 | 100 93 . Volleys Fired 36 | . 26 10 Largest 2 | . 2 2 Hottest 40 | . 40 40 Shots Fired 72 | . 52 20 Gun 72 | . 52 20 Cannon . | . . . Launcher . | . . . Special . | . . . Kinetic 72 | . 52 20 Thermal . | . . . Explosive . | . . . Electromagnetic . | . . . Robot Hit Streak 15 | . 15 3 Robot Miss Streak 3 | . 3 2 Penetration Max . | . . . Secondary Targets 2 | . 2 . Max Gunslinging Chain 1 | . 1 . Shots Hit Robots 45 | . 35 10 Core Hits 23 | . 17 6 Critical Hits . | . . . Critical Kills . | . . . Critical Parts Destroyed . | . . . Melee Attacks . | . . . Impact . | . . . Slashing . | . . . Piercing . | . . . Sneak Attacks . | . . . Combat Hostiles . | . . . Follow-up Attacks . | . . . Damage Inflicted 577 | . 446 131 Guns 568 | . 437 131 Cannons . | . . . Explosions . | . . . Melee . | . . . Ramming 9 | . 9 . Kinetic 568 | . 437 131 Thermal . | . . . Explosive . | . . . Electromagnetic . | . . . Impact . | . . . Slashing . | . . . Piercing . | . . . Highest Corruption . | . . . Average Corruption . | . . . Corruption Purged . | . . . Overload Shots . | . . . Overflow Damage . | . . . Projectiles . | . . . Explosions . | . . . Melee . | . . . Knockbacks . | . . . Impact . | . . . Kinetic . | . . . Secondary . | . . . Self-Inflicted Damage . | . . . Shots . | . . . Rammed . | . . . Targets Rammed 1 | . 1 . Kicked 1 | . 1 . Crushed . | . . . Highest Temperature 2 | . 2 . Average Temperature 1 | . 1 . Received Heat Transfer 150 | . 90 60 Siege Activations . | . . . Robots Corrupted . | . . . Combat Hostiles . | . . . Parts Fried . | . . . Impact Corruptions . | . . . Robots Melted . | . . . Combat Hostiles . | . . . Parts Melted . | . . . Heat Transferred . | . . . Parts Sabotaged . | . . . Parts Stolen . | . . . Parts Stripped . | . . . Power Chain Reactions . | . . . Missiles Intercepted . | . . . Alert | -11 -10 -9 ------- Run | Scr Mat Mat Peak Influence 218 | . 218 104 Average Influence 104 | . 124 73 Maximum Alert Level 1 | . 1 . Low Security (%) 88 | 100 84 100 Level 1 11 | . 15 . Level 2 . | . . . Level 3 . | . . . Level 4 . | . . . Level 5 . | . . . High Security . | . . . Max Security . | . . . Squads Dispatched 4 | . 2 2 Investigation 2 | . 1 1 Extermination . | . . . Reinforcement 2 | . 1 1 Assault . | . . . Garrison . | . . . Intercept . | . . . Construction Impeded . | . . . Haulers Reinforced . | . . . Stealth | -11 -10 -9 --------- Run | Scr Mat Mat Distress Signals 2 | . 2 . Communications Jammed . | . . . Distress Signals . | . . . Times Spotted 23 | . 17 6 Peak Tracking Total 5 | . 5 4 Tactical Retreats 1 | . 1 . Traps | -11 -10 -9 ------- Run | Scr Mat Mat Traps Triggered 2 | . 1 1 Indirectly . | . . . Trap Hack Attempts . | . . . Triggered . | . . . Disarmed . | . . . Reprogrammed . | . . . Reused . | . . . Traps Extracted . | . . . Installed . | . . . Triggered . | . . . Machines | -11 -10 -9 ---------- Run | Scr Mat Mat Machines Disabled 1 | . 1 . Max in Single Turn 1 | . 1 . Machines Sabotaged . | . . . Garrisons Compromised . | . . . Overloaded Fab Kills . | . . . Fab Network Shutdowns . | . . . Hacking | -11 -10 -9 --------- Run | Scr Mat Mat Machines Accessed 3 | . 3 . Terminals 3 | . 3 . Fabricators . | . . . Repair Stations . | . . . Recycling Units . | . . . Scanalyzers . | . . . Garrison Access . | . . . Total Hacks 6 | . 6 . Successful 2 | . 2 . Failed 4 | . 4 . Catastrophic . | . . . Database Lockouts . | . . . Manual 6 | . 6 . Terminals 6 | . 6 . Fabricators . | . . . Repair Stations . | . . . Recycling Units . | . . . Scanalyzers . | . . . Garrison Access . | . . . Terminal Hacks 2 | . 2 . Recall Reinforcements 1 | . 1 . Zone Layout 1 | . 1 . Fabricator Hacks . | . . . Repair Station Hacks . | . . . Recycling Unit Hacks . | . . . Scanalyzer . | . . . Garrison Access Hacks . | . . . Unauthorized Hacks . | . . . Terminals . | . . . Fabricators . | . . . Repair Stations . | . . . Recycling Units . | . . . Scanalyzers . | . . . Garrison Access . | . . . Data Cores Recovered . | . . . Used . | . . . Hacking Detections 3 | . 3 . Full Trace Events . | . . . Feedback Events . | . . . Feedback Blocked . | . . . Robot Schematics Acquired . | . . . Robots Built . | . . . Matter . | . . . Time . | . . . Total Robot Build Rating . | . . . Part Schematics Acquired . | . . . Parts Built . | . . . Matter . | . . . Time . | . . . Total Part Build Rating . | . . . Parts Repaired . | . . . Time . | . . . Parts Recycled . | . . . Recycled Matter . | . . . Retrieved Matter . | . . . Retrieved Components . | . . . Parts Scanalyzed . | . . . Part Schematics Acquired . | . . . Parts Damaged . | . . . Bothacking | -11 -10 -9 ------------ Run | Scr Mat Mat Used RIF Installer . | . . . Robots Hacked . | . . . Non-combat . | . . . Combat . | . . . Robot Hacks Applied . | . . . Relay Couplers Released . | . . . Robots Rewired . | . . . Allies Hacked . | . . . Hacks Repelled . | . . . Allies | -11 -10 -9 -------- Run | Scr Mat Mat Total Allies . | . . . Largest Group . | . . . Highest-Rated Group . | . . . Highest-Rated Ally . | . . . Total Orders . | . . . Ally Attacks . | . . . Total Damage . | . . . Kills . | . . . Allies Corrupted . | . . . Allies Melted . | . . . Intel | -11 -10 -9 ------- Run | Scr Mat Mat Robot Analysis Total . | . . . Derelict Logs Recovered . | . . . Drone Launches . | . . . Drone Recoveries . | . . . Exploration | -11 -10 -9 ------------- Run | Scr Mat Mat Turns Passed 583 | 56 435 92 Spaces Moved 346 | 36 270 40 Core 8 | 8 . . Treads . | . . . Legs 338 | 28 270 40 Wheels . | . . . Hover . | . . . Flight . | . . . Fastest Speed 50 | 50 120 120 Average Speed 118 | 105 120 120 Slowest Speed 150 | 150 120 120 Overloaded Moves . | . . . Propulsion Burnouts . | . . . Robots Hopped . | . . . Cave-ins Triggered . | . . . Exploration Rate (%) 26 | 4 70 6 Regions Visited 2 Branch Regions . Pre-discovered Areas . | . . . Known Exits Taken . | . . . Unknown Exits Taken 2 | 1 1 . Scrap Searched . | . . . Spaces Dug . | . . . Terrain Destroyed . | . . . Melee . | . . . Projectile . | . . . AOE . | . . . Actions | -11 -10 -9 --------- Run | Scr Mat Mat Total 444 | 51 328 65 Wait 41 | 4 24 13 Move 345 | 35 270 40 Hop . | . . . Pick Up 6 | 2 4 . Fast Attach 9 | 7 2 . Attach . | . . . Detach 2 | 1 1 . Swap 3 | 1 1 1 Drop 2 | 1 . 1 Fire 36 | . 26 10 Melee . | . . . Ram . | . . . Kick . | . . . Crush . | . . . Escape Stasis . | . . . Rewire . | . . . Trap . | . . . Miscellaneous . | . . . Route ------- -11/Scrapyard -10/Materials (discovered 3 exits: [*Mat x3]) -9/Materials (discovered 1 exit: [*Min]) History --------- Turn | Location | Event 2 | -11/Scrapyard | Met Revision 17 9 | -11/Scrapyard | Discovered new exit (range 16) 57 | -11/Scrapyard | Entered Materials 289 | -10/Materials | Discovered new exit (range 13) 318 | -10/Materials | Build established: Mutant 328 | -10/Materials | Discovered new exit (range 10) 346 | -10/Materials | Discovered new exit (range 18) 492 | -10/Materials | Entered another Materials area 492 | -9/Materials | Evolved 2 slots: Utility x2 558 | -9/Materials | Discovered new exit (range 5) 584 | -9/Materials | Self-destructed Last Messages --------------- 00496_ T-07 Excavator is excavating. 00513_ O-16 Technician: "IFF HANDSHAKE FAILED. SECURING TERMINAL." 00515_ ALERT: Hostiles spotted, dispatching reinforcements to Terminal M006. 00516_ T-07 Excavator is excavating. 00528_ K-01 Serf collects debris. 00529_ G-34 Mercenary destroyed. 00531_ K-01 Serf collects debris. 00532_ K-01 Serf destroyed. 00546_ G-34 Mercenary destroyed. 00549_ Acquired 31 matter. 00553_ Dropped Aluminum Leg. 00556_ U-05 Engineer builds a Door. 00558_ Acquired 17 matter. 00558_ EXIT=FOUND 00571_ Triggered Alarm Trap. 00571_ An alarm sounds. 00571_ ALERT: Alarm triggered, dispatching investigation squad. 00578_ Lgt. Nuclear Core destroyed. 00582_ Assault Rifle destroyed. Map ----- +----------------------------------------------------+ | | | | | | | | | | | | | | | | | | | | | | | | | | | | | ?????????????????????????????????????????????????? | | ?????????????####????????????????????????????????? | | ????????????? ??????????????????????????????? | | ????########? ?????????????????????????????? | | ????# ! #?? [ ???##???????????????????????? | | ????# #?? ??# ???????????????????????? | | ????#""" #???" """???# #???????????????????????? | | ????#""" #???" """???# #???????????????????????? | | ????#""" #???? ""????# #???????????????????????? | | ?????? ????? ????#Y#???????????????????????? | | ????####+########+###### ####????????????????????? | | ????# g @g #????????????????????? | | ????# ######## #????????????????????? | | ????# = #??????#?#????????????????????? | | ????##### #### [ #???? +??????????????????????? | | ????????# #??#* #?? #??????????????????????? | | ????????# #??# * # #??????????????????????? | | ??????? / #??# %+* < #??????????????????????? | | ?????? # #??# #! #??????????????????????? | | ????? # #??# # #??????????????????????? | | ????###?# #??# #?######??????????????????????? | | ???????? ?? ?????????????????????????????? | | ???????? ?# ?????????????????????????????? | | ???????? ## ????????????????????????????? | | ??????? ## ????????????????????????????? | | ???????# ## #????????????????????????????? | | ???????### ###### ###????????????????????????????? | | ?????????? ?????# ???????????????????????????????? | | ?????????? ?????# ???????????????????????????????? | | ????????????????# ???????????????????????????????? | | ????????????????? ???????????????????????????????? | | ????????????????? ???????????????????????????????? | | ????????????????? ???????????????????????????????? | | ?????????????????????????????????????????????????? | | ?????????????????????????????????????????????????? | | ?????????????????????????????????????????????????? | +----------------------------------------------------+ Best States ------------- Heat Dissipation 42 Energy Generation 14 Energy Capacity 250 Matter Stores 300 Matter Capacity 300 Sight Range 16 Terrain Scan Density 10 Evasion (%) 50 Item Schematics ----------------- None Robot Schematics ------------------ None Fabricated ------------ Nothing Alien Tech Used ----------------- None Achievements -------------- None Challenges ------------ None Game ------ Seed SubatomicInsulatedBooster Manual? 0 Play Time 00:04:37 Cumulative 85.3 hours Start 2020.08.09 @ 19:15:09 End 2020.08.09 @ 19:19:12 Sessions 1 Manual Loads 0 Difficulty Rogue Special Mode None Game No. 95 Rogue 8 Adventurer 87 Explorer 0 Win Type - Total 3 Types 2/0/0/1/0/0/0 Lore% 45 Gallery% 60 Achievement% 51 Wizard Run 0 Options --------- ASCII 0 Keyboard 1 Movement Numpad Keybinds 0 Fullscreen 1 Font 18/Smallcaps Map View 76x50 Tactical HUD 1 Map Filters NONE Filters NONE Steam 1 RUN: e3437291-285f-42f8-aaeb-04803b1f4671